Cogmind - Beta 15 @@@ ROGUE MODE // 2025.06.06 @ 23:19:56 Player: ldi (hl). (hl) Result: Destroyed by G-73 Enforcer with Heavy Laser Performance ------------- Evolutions (8) 4000 Regions Visited (18) 3600 Robots Destroyed (65) 325 Value Destroyed (3428) 3428 Prototype IDs (17) 340 Alien Tech Used (0) 0 Bonus (1539) 1539 TOTAL SCORE: 13232 Bonus ------- Follower Combat Kills 647 Network Hubs Disabled 200 Built Enhanced Grunts 300 Met R17 at Cetus 500 Friendly Fire -108 Cogmind --------- Core Integrity 0/1450 Matter 183/300 Energy 92/100 System Corruption 7% Temperature Cool (0) Movement Core (50) Location -2/Research Parts ------- > --- POWER (2) -------- (None) > --- PROPULSION (5) --- Antigrav Array Antigrav Array > --- UTILITY (14) ----- (None) > --- WEAPON (2) ------- (None) > --- INVENTORY (5) ---- Advanced Shield Generator Backup Laser I Backup Laser I Disruptor Cannon Peak State ------------ > --- POWER ------------ Antimatter Reactor Quantum Reactor > --- PROPULSION ------- Enhanced Flexi-carbon Leg Enhanced Flexi-carbon Leg Enhanced Flexi-carbon Leg Enhanced Flexi-carbon Leg Enhanced Flexi-carbon Leg > --- UTILITY ---------- Advanced Cooling System Spectral Analyzer 0b10 Decoder Chip [Looter] Experimental Core Analyzer Centrium Medium Armor Plating Centrium Medium Armor Plating Medium Regenerative Plating Experimental Thermal Shield Force Field Advanced System Shield > --- WEAPON ----------- Advanced Variable Charge Gun Advanced KE Penetrator > --- INVENTORY -------- Neutron Cannon Neutron Cannon Neutron Cannon [Rating: 144] Favorites ----------- Power Hybrid Deuterium Engine Engine Hybrid Deuterium Engine Power Core Light Nuclear Core Reactor Antimatter Reactor Propulsion Improved Cesium-ion Thruster Treads Biometal Heavy Treads Leg Enhanced Flexi-carbon Leg Hover Unit Combat Gravmag System Flight Unit Improved Cesium-ion Thruster Utility Experimental Core Analyzer Device Improved Sensor Array Storage Medium Storage Unit Processor Experimental Core Analyzer Hackware Advanced System Shield Protection Centrium Medium Armor Plating Weapon Heavy Flail Energy Gun Advanced Variable Charge Gun Energy Cannon Neutron Cannon Ballistic Gun Advanced KE Penetrator Launcher Advanced EMP Blaster Impact Weapon Heavy Flail Slashing Weapon Phasing Sabre Piercing Weapon Spear Build | -11 -10 -10 -10 -8 -7 -6 -6 -6 -6 -5 -5 -5 -5 -5 -5 -4 -3 -2 ------- Run | Yrd Mat Min Sub Mat Fac Fac Low Low Zio Pro Fac Ext Cet Arc Hub Fac Res Res Slots Evolved 16 | . . . . 4 2 2 . . . . 2 . . . . 2 2 2 Power 1 | . . . . . . . . . . . . . . . . 1 . . Propulsion 3 | . . . . 2 1 . . . . . . . . . . . . . Utility 12 | . . . . 2 1 2 . . . . 2 . . . . 1 2 2 Weapon . | . . . . . . . . . . . . . . . . . . . Parts Attached 120 | 6 3 . . 11 6 2 . 2 5 1 10 16 21 1 . 24 1 11 Power 14 | 1 1 . . 1 1 . . . . . 1 . 2 . . 4 . 3 Engine 8 | 1 1 . . . 1 . . . . . 1 . . . . 1 . 3 Core 1 | . . . . 1 . . . . . . . . . . . . . . Reactor 5 | . . . . . . . . . . . . . 2 . . 3 . . Propulsion 37 | 2 2 . . 4 1 . . . . . 2 9 9 . . 5 . 3 Treads 1 | . . . . . . . . . . . . . . . . . . 1 Leg 18 | 2 . . . . . . . . . . . 5 6 . . 5 . . Wheel . | . . . . . . . . . . . . . . . . . . . Hover 11 | . . . . . . . . . . . 2 4 3 . . . . 2 Flight 7 | . 2 . . 4 1 . . . . . . . . . . . . . Utility 44 | 1 . . . 5 2 2 . 2 5 1 5 3 6 1 . 8 1 2 Device 12 | . . . . 1 . . . . . . 3 . 3 . . 4 . 1 Storage 2 | 1 . . . . . . . . . . . 1 . . . . . . Processor 18 | . . . . 2 . 2 . 1 5 1 1 1 . . . 4 . 1 Hackware 5 | . . . . 1 1 . . . . . 1 1 . . . . 1 . Protection 7 | . . . . 1 1 . . 1 . . . . 3 1 . . . . Artifact . | . . . . . . . . . . . . . . . . . . . Weapon 25 | 2 . . . 1 2 . . . . . 2 4 4 . . 7 . 3 Energy Gun 7 | 1 . . . . . . . . . . . . 3 . . 2 . 1 Energy Cannon 4 | . . . . . . . . . . . . . . . . 3 . 1 Ballistic Gun 5 | 1 . . . . . . . . . . . . 1 . . 2 . 1 Ballistic Cannon . | . . . . . . . . . . . . . . . . . . . Launcher 1 | . . . . . 1 . . . . . . . . . . . . . Special Weapon . | . . . . . . . . . . . . . . . . . . . Impact Weapon 4 | . . . . 1 1 . . . . . 2 . . . . . . . Slashing Weapon 3 | . . . . . . . . . . . . 3 . . . . . . Piercing Weapon 1 | . . . . . . . . . . . . 1 . . . . . . Special Melee Weapon . | . . . . . . . . . . . . . . . . . . . Unidentified Prototypes 15 | . . . . 1 1 . . . 5 . . . 7 . . 1 . . Parts Lost 51 | . . . 2 . 1 . . . . 1 5 9 4 1 . 23 . 5 Power 9 | . . . 1 . . . . . . . 1 . . . . 5 . 2 Propulsion 21 | . . . 1 . . . . . . . 2 5 4 . . 7 . 2 Utility 16 | . . . . . 1 . . . . 1 2 2 . 1 . 9 . . Weapon 5 | . . . . . . . . . . . . 2 . . . 2 . 1 Highest Loss Streak 10 | . . . 2 . 1 . . . . 1 3 7 4 1 . 10 . 2 To Critical Strikes . | . . . . . . . . . . . . . . . . . . . Average Backups 4 | . 1 3 3 4 4 3 3 4 5 4 3 4 7 6 5 4 5 4 Power 1 | . . . . . 1 1 1 1 1 1 . 2 3 1 1 . 1 . Propulsion . | . . 1 1 . . . . . . . 1 1 . . . . . . Utility 1 | . . . . . 3 2 2 3 4 3 1 . 1 1 1 . 1 1 Weapon 1 | . . 2 1 2 . . . . . . . . 2 2 3 3 3 3 Tool/Special . | . . . . . . . . . . . . . . . . . . . Unused Backups 17 | . . . . 1 5 . . . 1 . 2 . 4 2 . 1 . 1 Power 5 | . . . . 1 . . . . . . . . 3 1 . . . . Propulsion . | . . . . . . . . . . . . . . . . . . . Utility 10 | . . . . . 4 . . . 1 . 2 . . 1 . 1 . 1 Weapon 2 | . . . . . 1 . . . . . . . 1 . . . . . Tool/Special . | . . . . . . . . . . . . . . . . . . . Average Slot Usage (%) 79 | . 72 42 42 41 96 98 100 100 100 100 90 84 87 99 100 84 1 25 Engine 4 | . 14 14 14 . 5 6 6 6 6 6 4 5 . . . . . 5 Reactor 1 | . . . . . . . . . . . . . 4 5 5 6 . . Leg 7 | . 17 . . . . . . . . . . 6 9 29 29 22 . . Hover 2 | . . . . . . . . . . . 5 11 8 . . . . 4 Flight 14 | . 8 28 28 21 37 33 33 33 33 33 19 6 . . . . . . Device 6 | . . . . 3 7 6 6 6 6 6 6 2 9 11 11 10 . 2 Processor 17 | . . . . 5 7 18 20 20 24 27 31 30 23 17 17 19 . 1 Hackware 4 | . . . . 6 7 6 6 6 1 . 5 9 5 5 5 4 1 2 Protection 6 | . . . . . 13 13 13 13 13 11 1 . 4 15 17 8 . 2 Energy Gun 1 | . 10 . . . . . . . . . . . 6 5 5 3 . 2 Ballistic Gun 1 | . 10 . . . . . . . . . . . 3 5 5 2 . 2 Impact Weapon 4 | . . . . 5 10 13 13 13 13 13 10 2 . . . . . . Peak Build Rating 144 | 6 6 3 4 31 44 50 50 52 66 65 93 96 127 131 131 144 7 33 Average Rating 66 | 4 4 3 3 10 42 49 50 50 60 64 77 75 97 129 131 112 3 19 On Entrance 48 | . 6 3 3 1 31 44 50 50 50 64 65 86 67 127 131 131 2 7 Naked Turns 183 | . . . . . . . . . . . . . . . . 64 47 72 Heaviest Build 80 | 14 14 3 3 11 22 19 19 19 18 18 19 19 61 56 53 80 . 15 Greatest Support 140 | 20 20 8 8 20 26 26 26 26 26 26 26 75 140 140 140 140 3 26 Greatest Overweight (x) 3 | . 3 . . . . . . . . . 1 1 2 . . . . 2 Average Overweight (x) . | . . . . . . . . . . . . . . . . . . . Largest Inventory Capacity 10 | 8 8 5 5 5 5 5 5 5 5 5 5 10 10 10 5 5 5 5 Average Capacity 5 | 6 7 5 5 5 5 5 5 5 5 5 5 7 10 6 5 5 5 5 Most Carried 10 | 1 3 3 4 5 5 4 3 5 5 5 5 8 10 10 5 5 5 5 Average Carried 4 | . 1 3 3 4 4 3 3 4 4 4 4 3 7 6 5 4 5 4 Final Capacity 10 | 8 5 5 5 5 5 5 5 5 5 5 5 10 10 5 5 5 5 5 Final Carried 10 | 1 3 3 4 5 5 3 3 5 5 4 5 8 10 5 5 5 5 4 Class Distribution -------------------- 29% | Scavenger-Mutant 27% | Scout 23% | Mutant 10% | Sprinter 5% | Hacker-Mutant Dominant Class ---------------- Mutant | -10/Materials Mutant | -10/Mines Mutant | -10/Subcaves Mutant | -8/Materials Sprinter | -7/Factory Scout | -6/Factory Scout | -6/Lower Caves Scout | -6/Lower Caves Scout | -6/Zion Scout | -5/Proximity Caves Scout | -5/Factory Hacker-Mutant | -5/Extension Scavenger-Mutant | -5/Cetus Scavenger-Mutant | -5/Archives Scavenger-Mutant | -5/Hub_04(d) Scavenger-Mutant | -4/Factory Mutant | -3/Research Mutant | -2/Research Resources | -11 -10 -10 -10 -8 -7 -6 -6 -6 -6 -5 -5 -5 -5 -5 -5 -4 -3 -2 ----------- Run | Yrd Mat Min Sub Mat Fac Fac Low Low Zio Pro Fac Ext Cet Arc Hub Fac Res Res Matter Collected 1806 | 151 . 37 127 24 156 20 . 20 . 45 136 183 301 170 . 436 . . Remotely . | . . . . . . . . . . . . . . . . . . . Salvage Created 3533 | . . . 29 61 234 48 19 195 . 42 273 564 460 423 96 1089 . . Parts 145 | . . . 3 3 9 3 1 5 . . 2 21 22 23 7 46 . . Haulers Intercepted 3 | . . . . . 2 . . . . . 1 . . . . . . . Recyclers Shooed 2 | . . . . . . . . . . . . 1 . . . 1 . . Parts Field Recycled . | . . . . . . . . . . . . . . . . . . . Retrieved Matter . | . . . . . . . . . . . . . . . . . . . Parts Self-Destructed 27 | . . . 16 . . . . 6 . 5 . . . . . . . . Prevented 1 | . . . . . . . 1 . . . . . . . . . . . Kills | -11 -10 -10 -10 -8 -7 -6 -6 -6 -6 -5 -5 -5 -5 -5 -5 -4 -3 -2 ------- Run | Yrd Mat Min Sub Mat Fac Fac Low Low Zio Pro Fac Ext Cet Arc Hub Fac Res Res Combat Hostiles Destroyed 40 | . . . . . . . 1 3 . 1 2 6 6 4 1 16 . . Melee 10 | . . . . . . . . 3 . . 1 6 . . . . . . Guns 18 | . . . . . . . . . . . . . 6 4 . 8 . . Cannons 8 | . . . . . . . . . . . . . . . . 8 . . AOE 1 | . . . . . . . . . . . . . . . 1 . . . Classes Destroyed 16 | . . . 1 2 3 . 1 2 . 1 . 3 . . 1 2 . . Worker 4 | . . . . . 1 . . . . . . . . . 3 . . . Builder 1 | . . . . . . . . . . . . 1 . . . . . . Tunneler 1 | . . . . 1 . . . . . . . . . . . . . . Hauler 3 | . . . . . 2 . . . . . 1 . . . . . . . Recycler 1 | . . . . . . . . . . . . 1 . . . . . . Operator 6 | . . . . . 1 1 . . . . 1 1 . 2 . . . . Watcher 6 | . . . . 1 3 1 . . . . 1 . . . . . . . Swarmer 1 | . . . . . . . 1 . . . . . . . . . . . Saboteur 1 | . . . . . . . . . . . . . . . 1 . . . Grunt 15 | . . . . . . . . 2 . . 1 5 . . . 7 . . Brawler 1 | . . . . . . . . 1 . . . . . . . . . . Sentry 6 | . . . . . . . . . . . . 1 . 4 . 1 . . Specialist 2 | . . . . . . . . . . . . . . . . 2 . . Hunter 4 | . . . . . . . . . . 1 1 . . . . 2 . . Programmer 4 | . . . . . . . . . . . . . . . . 4 . . Cetus Guard 6 | . . . . . . . . . . . . . 6 . . . . . Enhanced Grunt 1 | . . . . . . . . . . . . . 1 . . . . . Zionite 2 | . . . 2 . . . . . . . . . . . . . . . Best Kill Streak 4 | . . . . 1 3 2 1 3 . 1 2 3 2 2 4 4 . . Combat Bots Only 4 | . . . . . . . 1 3 . 1 1 3 2 1 1 4 . . Max Kills in Single Turn 4 | . . . 1 1 1 1 1 1 . 1 1 1 1 2 4 2 . . Gunslinging 1 | . . . . . . . . . . . . . . . . 1 . . Exploded 1 | . . . . . . . . . . . . . . . 1 . . . Melee 1 | . . . . . . . . 1 . . 1 1 . . . . . . Uniques/NPCs Destroyed . | . . . . . . . . . . . . . . . . . . . Combat | -11 -10 -10 -10 -8 -7 -6 -6 -6 -6 -5 -5 -5 -5 -5 -5 -4 -3 -2 -------- Run | Yrd Mat Min Sub Mat Fac Fac Low Low Zio Pro Fac Ext Cet Arc Hub Fac Res Res Hostile Shots Fired 965 | . . . 20 17 4 1 32 9 . 35 71 64 66 42 42 351 4 207 Missed 370 | . . . 13 12 3 . 18 7 . 17 38 24 31 16 11 93 1 86 Hits 595 | . . . 7 5 1 1 14 2 . 18 33 40 35 26 31 258 3 121 Melee 8 | . . . . . . . . . . . . 5 . . 3 . . . Projectile 587 | . . . 7 5 1 1 14 2 . 18 33 35 35 26 28 258 3 121 AOE 4 | . . . . . . . . . . . 3 . . . . 1 . . Critical Strikes 28 | . . . 1 . . . . . . . 1 3 3 . 2 13 . 5 Part Disruptions 1 | . . . . . . . . . . . . . . . 1 . . . Damage Taken 12073 | . . . 150 80 16 71 214 39 . 412 957 1113 851 560 725 4130 84 2671 Core 3511 | . . . 90 46 . . 71 19 . 93 346 323 112 48 31 787 84 1461 Absorbed by Shields 847 | . . . . . . . . . . . . 39 148 . . 660 . . Redirected to Shielding 57 | . . . . . 10 11 . . . 23 13 . . . . . . . Ignored by Resistances 534 | . . . . . . . . . . . . . . 126 141 267 . . Regen/Repaired (Parts) 644 | . . . . . . . . . 88 . 43 . 136 107 52 218 . . Core Remaining (%) 71 | 100 . . 64 91 100 . . . . 78 . . . . 14 31 93 . Volleys Fired 129 | . . . 5 . . . . . . . . . 29 29 4 60 . 2 Largest 2 | . . . 1 . . . . . . . . . 2 2 2 2 . 2 Hottest 328 | . . . 20 . . . . . . . . . 275 115 275 328 . 110 Shots Fired 238 | . . . 5 . . . . . . . . . 48 56 7 118 . 4 Gun 199 | . . . 5 . . . . . . . . . 48 56 7 79 . 4 Cannon 39 | . . . . . . . . . . . . . . . . 39 . . Launcher . | . . . . . . . . . . . . . . . . . . . Special . | . . . . . . . . . . . . . . . . . . . Kinetic 106 | . . . 5 . . . . . . . . . 18 30 2 49 . 2 Thermal 132 | . . . . . . . . . . . . . 30 26 5 69 . 2 Explosive . | . . . . . . . . . . . . . . . . . . . Electromagnetic . | . . . . . . . . . . . . . . . . . . . Robot Hit Streak 23 | . . . 5 . . . . . . . . . 16 23 1 10 . 5 Robot Miss Streak 3 | . . . . . . . . . . . . . 2 1 1 3 . 3 Penetration Max 1 | . . . . . . . . . . . . . . 1 . 1 . . Secondary Targets 4 | . . . . . . . . . . . . . 1 . . 3 . . Max Gunslinging Chain 1 | . . . . . . . . . . . . . 1 . . 1 . . Shots Hit Robots 226 | . . . 5 2 11 2 2 3 . 5 14 16 39 48 1 75 . 3 Core Hits 102 | . . . 2 1 3 1 . 3 . . 2 10 17 20 5 36 . 2 Critical Kills 14 | . . . . 1 3 . . 2 . . . . 4 2 . 2 . . Critical Parts Destroyed 12 | . . . . . 2 1 . . . . 3 . 2 . . 4 . . Critical Strikes 32 | . . . . 1 5 1 . 2 . . 3 2 7 4 . 7 . . Burn 2 | . . . . . . . . . . . . . 1 . . 1 . . Destroy 16 | . . . . . . . . . . . . . 6 4 . 6 . . Smash 12 | . . . . 1 5 1 . 2 . . 3 . . . . . . . Sever 1 | . . . . . . . . . . . . 1 . . . . . . Impale 1 | . . . . . . . . . . . . 1 . . . . . . Melee Attacks 132 | . . . . 3 29 2 6 5 2 8 46 31 . . . . . . Impact 106 | . . . . 3 29 2 6 5 2 8 46 5 . . . . . . Slashing 19 | . . . . . . . . . . . . 19 . . . . . . Piercing 7 | . . . . . . . . . . . . 7 . . . . . . Sneak Attacks 10 | . . . . 1 3 . . . . . 2 4 . . . . . . Combat Hostiles 1 | . . . . . . . . . . . 1 . . . . . . . Follow-up Attacks 7 | . . . . . . . 1 . . 2 2 2 . . . . . . Damage Inflicted 8437 | . . . 68 144 778 158 91 194 . 261 844 894 921 1329 370 2321 . 64 Guns 3724 | . . . 68 . . . . . . . . . 921 1329 25 1327 . 54 Cannons 987 | . . . . . . . . . . . . . . . . 987 . . Explosions 345 | . . . . . . . . . . . . . . . 345 . . . Melee 3343 | . . . . 144 778 158 91 194 . 261 844 873 . . . . . . Ramming 38 | . . . . . . . . . . . . 21 . . . 7 . 10 Kinetic 1946 | . . . 68 . . . . . . . . . 337 779 25 717 . 20 Thermal 2765 | . . . . . . . . . . . . . 584 550 . 1597 . 34 Explosive . | . . . . . . . . . . . . . . . . . . . Electromagnetic 345 | . . . . . . . . . . . . . . . 345 . . . Impact 2604 | . . . . 144 778 158 91 194 . 261 844 134 . . . . . . Slashing 581 | . . . . . . . . . . . . 581 . . . . . . Piercing 158 | . . . . . . . . . . . . 158 . . . . . . Highest Corruption 13 | . . . . . 1 . . . 5 . 6 10 10 10 13 9 . 7 Average Corruption 6 | . . . . . 1 . . . 5 . 5 8 10 10 10 6 . 4 Corruption Purged . | . . . . . . . . . . . . . . . . . . . Corruption Blocked . | . . . . . . . . . . . . . . . . . . . Effects 91 | . . . . . 2 . . . 4 . 9 19 24 7 9 14 . 3 Message Errors 26 | . . . . . . . . . 3 . 2 7 7 . 3 3 . 1 Matter Fused 23 | . . . . . . . . . . . 2 6 5 3 1 5 . 1 Heat Flow Errors 10 | . . . . . . . . . . . 1 2 3 1 1 2 . . Energy Discharges 6 | . . . . . . . . . . . 2 . 2 . . 1 . 1 Parts Rejected 2 | . . . . . . . . . . . . 1 . . 1 . . . Parts Fused 1 | . . . . . . . . . . . . . 1 . . . . . Data Loss (minor) 10 | . . . . . 1 . . . 1 . . 3 2 2 . 1 . . Data Loss (major) 4 | . . . . . . . . . . . 1 . 2 . . 1 . . Misfires 4 | . . . . . . . . . . . . . 1 1 1 1 . . Alerts 2 | . . . . . 1 . . . . . 1 . . . . . . . Misdirections 2 | . . . . . . . . . . . . . . . 2 . . . Weapon Failures 1 | . . . . . . . . . . . . . 1 . . . . . Overload Shots 8 | . . . . . . . . . . . . . 1 . 5 2 . . Overflow Damage 1025 | . . . . 78 256 85 28 . . 33 354 188 . . . 3 . . Projectiles 3 | . . . . . . . . . . . . . . . . 3 . . Explosions . | . . . . . . . . . . . . . . . . . . . Melee 1022 | . . . . 78 256 85 28 . . 33 354 188 . . . . . . Knockbacks 12 | . . . . . 4 . . . . 1 6 1 . . . . . . Impact 12 | . . . . . 4 . . . . 1 6 1 . . . . . . Kinetic . | . . . . . . . . . . . . . . . . . . . Secondary . | . . . . . . . . . . . . . . . . . . . Self-Inflicted Damage 120 | . . . . . . . . . . . . 9 . . 107 . . 4 Shots 1 | . . . . . . . . . . . . . . . 1 . . . Rammed 11 | . . . . . . . . . . . . 8 . . . . . 3 Targets Rammed 13 | . . . . . . . . . . . . 8 . . . 2 . 3 Kicked 2 | . . . . . . . . . . . . . . . . 2 . . Crushed . | . . . . . . . . . . . . . . . . . . . Highest Temperature 581 | . . . . 7 48 . 5 1 1 6 204 198 242 159 368 581 . 6 Average Temperature 101 | . . . . 4 12 . 3 1 1 2 137 85 81 83 139 133 . 4 Received Heat Transfer 1743 | . . . 63 45 . . 9 . . 21 90 308 111 126 195 496 18 261 Effects 12 | . . . . . . . . . . . . . . . . 12 . . Shutdowns 2 | . . . . . . . . . . . . . . . . 2 . . Energy Bleed 1 | . . . . . . . . . . . . . . . . 1 . . Interference 5 | . . . . . . . . . . . . . . . . 5 . . Damage (major) 4 | . . . . . . . . . . . . . . . . 4 . . Siege Activations . | . . . . . . . . . . . . . . . . . . . Martial Activations . | . . . . . . . . . . . . . . . . . . . Shielding Activations . | . . . . . . . . . . . . . . . . . . . Robots Disrupted . | . . . . . . . . . . . . . . . . . . . Combat Hostiles . | . . . . . . . . . . . . . . . . . . . Robots Corrupted 9 | . . . . . 4 1 1 . . 1 2 . . . . . . . Combat Hostiles 3 | . . . . . . . 1 . . 1 1 . . . . . . . Parts Fried 11 | . . . . 1 3 2 . . . . 5 . . . . . . . Impact Corruptions 28 | . . . . 2 9 4 2 . . 2 9 . . . . . . . Robots Melted . | . . . . . . . . . . . . . . . . . . . Combat Hostiles . | . . . . . . . . . . . . . . . . . . . Parts Melted 5 | . . . . . . . . . . . . . 1 . . 4 . . Heat Transferred 2986 | . . . . . . . . . . . . . 1242 740 . 929 . 75 Parts Sabotaged . | . . . . . . . . . . . . . . . . . . . Parts Stolen . | . . . . . . . . . . . . . . . . . . . Parts Stripped . | . . . . . . . . . . . . . . . . . . . Power Chain Reactions . | . . . . . . . . . . . . . . . . . . . Alert | -11 -10 -10 -10 -8 -7 -6 -6 -6 -6 -5 -5 -5 -5 -5 -5 -4 -3 -2 ------- Run | Yrd Mat Min Sub Mat Fac Fac Low Low Zio Pro Fac Ext Cet Arc Hub Fac Res Res Maximum Alert Level 2 | . . . . . . . . . . . . 1 . . 2 1 . 1 Low Security (%) 86 | 100 100 100 . 100 100 100 . . . . 100 55 100 100 62 65 100 99 Level 1 12 | . . . . . . . . . . . . 44 . . . 34 . . Level 2 1 | . . . . . . . . . . . . . . . 37 . . . Level 3 . | . . . . . . . . . . . . . . . . . . . Level 4 . | . . . . . . . . . . . . . . . . . . . Level 5 . | . . . . . . . . . . . . . . . . . . . High Security . | . . . . . . . . . . . . . . . . . . . Max Security . | . . . . . . . . . . . . . . . . . . . Peak Influence 465 | . . . . 62 96 36 . . . . 195 358 169 55 465 264 111 220 Initial 218 | . . . . . 23 30 . . . . 32 95 157 7 4 218 71 56 Average 88 | . . . . 14 36 27 . . . . 34 197 55 22 244 168 85 31 Influence Increases 3547 | . . . 35 87 258 16 110 130 . 133 336 659 217 115 513 540 60 338 Destroy 0b10 Robot/C 1160 | . . . 20 . . . 20 60 . 40 40 400 160 80 20 320 . . Destroy 0b10 Robot/NC 125 | . . . . 10 35 10 . . . . 15 25 5 10 15 . . . Destroy Leader 170 | . . . . 2 10 2 . 10 . 10 14 42 . . . 80 . . Allied During Kill 123 | . . . . . . . . . . 8 . 102 13 . . . . . Successful Hack 109 | . . . . . 42 4 . . . . 5 26 . . 9 . . 23 Disable Machine 195 | . . . . 15 30 . . . . . 15 15 . 15 75 30 . . Anti-Garrison Action 150 | . . . . . . . . . . . . . . . 150 . . . Destroy Structure 390 | . . . . . 6 . . . . . 22 34 24 10 244 50 . . Partial Spotted 120 | . . . . . 15 . . . . . 30 . . . . 30 45 . Lose Combat Pursuer 1005 | . . . 15 60 120 . 90 60 . 75 195 15 15 . . 30 15 315 Influence Decreases 3327 | . . . 35 35 247 43 54 159 63 80 194 572 480 119 81 851 95 219 Entered New Map 766 | . . . . . 29 33 14 19 63 . 21 100 125 12 11 229 65 45 Time Decay 1890 | . . . 35 35 208 10 40 140 . 30 158 262 249 97 70 392 30 134 Lost Part 445 | . . . . . 10 . . . . 10 15 90 40 10 . 230 . 40 Lost Ally 226 | . . . . . . . . . . 40 . 120 66 . . . . . Squads Dispatched 30 | . . . . 2 6 1 . . . . 4 4 . . 3 4 . 6 Investigation 14 | . . . . 2 4 1 . . . . 1 3 . . . . . 3 Extermination 6 | . . . . . 1 . . . . . 2 . . . . 2 . 1 Reinforcement 6 | . . . . . 1 . . . . . 1 1 . . 1 2 . . Assault 4 | . . . . . . . . . . . . . . . 2 . . 2 Garrison . | . . . . . . . . . . . . . . . . . . . Intercept . | . . . . . . . . . . . . . . . . . . . Searches Triggered . | . . . . . . . . . . . . . . . . . . . Construction Impeded 1 | . . . . . . . . . . . . . . . . 1 . . Haulers Reinforced 1 | . . . . . . . . . . . 1 . . . . . . . Active Scanning Responses . | . . . . . . . . . . . . . . . . . . . Cargo Convoy Interrupts . | . . . . . . . . . . . . . . . . . . . Stealth | -11 -10 -10 -10 -8 -7 -6 -6 -6 -6 -5 -5 -5 -5 -5 -5 -4 -3 -2 --------- Run | Yrd Mat Min Sub Mat Fac Fac Low Low Zio Pro Fac Ext Cet Arc Hub Fac Res Res Distress Signals 7 | . . . . . . 1 . . . . . 2 2 . . 1 1 . Communications Jammed . | . . . . . . . . . . . . . . . . . . . Distress Signals . | . . . . . . . . . . . . . . . . . . . Times Spotted 185 | . 1 . 6 7 12 5 7 7 . 9 19 23 11 10 11 24 2 31 Peak Tracking Total 17 | . 1 . 3 5 5 4 4 5 . 6 10 9 5 2 8 7 3 17 Tactical Retreats 24 | . . . 1 1 4 . 2 1 . 1 4 1 1 . . 2 1 5 Traps | -11 -10 -10 -10 -8 -7 -6 -6 -6 -6 -5 -5 -5 -5 -5 -5 -4 -3 -2 ------- Run | Yrd Mat Min Sub Mat Fac Fac Low Low Zio Pro Fac Ext Cet Arc Hub Fac Res Res Traps Triggered 5 | . . . . . . 1 . . . . . 3 . . 1 . . . Indirectly 1 | . . . . . . . . . . . . . . . 1 . . . Trap Hack Attempts . | . . . . . . . . . . . . . . . . . . . Triggered . | . . . . . . . . . . . . . . . . . . . Disarmed . | . . . . . . . . . . . . . . . . . . . Reprogrammed . | . . . . . . . . . . . . . . . . . . . Reused . | . . . . . . . . . . . . . . . . . . . Traps Extracted . | . . . . . . . . . . . . . . . . . . . Installed . | . . . . . . . . . . . . . . . . . . . Triggered . | . . . . . . . . . . . . . . . . . . . Machines | -11 -10 -10 -10 -8 -7 -6 -6 -6 -6 -5 -5 -5 -5 -5 -5 -4 -3 -2 ---------- Run | Yrd Mat Min Sub Mat Fac Fac Low Low Zio Pro Fac Ext Cet Arc Hub Fac Res Res Machines Disabled 14 | . . . . 1 2 . . . . . 1 1 . 1 6 2 . . Max in Single Turn 5 | . . . . 1 1 . . . . . 1 1 . 1 5 1 . . Garrison Access 3 | . . . . . . . . . . . . . . . 1 1 . 1 Network Hub 1 | . . . . . . . . . . . . . . . 1 . . . Machines Repaired . | . . . . . . . . . . . . . . . . . . . Machines Dismantled . | . . . . . . . . . . . . . . . . . . . Machines Sabotaged . | . . . . . . . . . . . . . . . . . . . Overloaded Fab Kills . | . . . . . . . . . . . . . . . . . . . Hacking | -11 -10 -10 -10 -8 -7 -6 -6 -6 -6 -5 -5 -5 -5 -5 -5 -4 -3 -2 --------- Run | Yrd Mat Min Sub Mat Fac Fac Low Low Zio Pro Fac Ext Cet Arc Hub Fac Res Res Machines Accessed 35 | . . . . 2 6 2 1 . 1 1 4 8 . . 1 2 2 5 Terminals 26 | . . . . 2 3 2 . . . 1 3 8 . . 1 1 2 3 Fabricators 1 | . . . . . 1 . . . . . . . . . . . . . Repair Stations 2 | . . . . . . . . . . . 1 . . . . . . 1 Recycling Units . | . . . . . . . . . . . . . . . . . . . Scanalyzers 2 | . . . . . 2 . . . . . . . . . . . . . Garrison Access 2 | . . . . . . . . . . . . . . . . 1 . 1 Total Hacks 98 | . . . . 4 15 5 1 . 5 1 12 25 . . 3 3 3 21 Successful 32 | . . . . 1 6 2 1 . 5 1 4 7 . . 1 1 . 3 Failed 66 | . . . . 3 9 3 . . . . 8 18 . . 2 2 3 18 Catastrophic 15 | . . . . . 4 . . . . . 2 3 . . . 1 1 4 Database Lockouts . | . . . . . . . . . . . . . . . . . . . Manual 27 | . . . . 3 . 3 . . 1 . 8 . 1 . 3 . 1 7 Terminals 71 | . . . . 4 7 5 . . . 1 8 25 . . 3 2 3 13 Fabricators 4 | . . . . . 4 . . . . . . . . . . . . . Repair Stations 9 | . . . . . . . . . . . 4 . . . . . . 5 Recycling Units . | . . . . . . . . . . . . . . . . . . . Scanalyzers 4 | . . . . . 4 . . . . . . . . . . . . . Garrison Access 4 | . . . . . . . . . . . . . . . . 1 . 3 Terminal Hacks 19 | . . . . . . 1 1 . 5 1 1 7 . . 1 . . 2 Record 1 | . . . . . . . . . . 1 . . . . . . . . Part Schematic 5 | . . . . . . . . . 5 . . . . . . . . . Prototype ID Bank 1 | . . . . . . . . . . . . 1 . . . . . . Open Door 5 | . . . . . . . 1 . . . . 4 . . . . . . Level Access Points 2 | . . . . . . . . . . . . . . . 1 . . 1 Branch Access Points 2 | . . . . . . 1 . . . . . . . . . . . 1 Terminal Index 1 | . . . . . . . . . . . 1 . . . . . . . Zone Layout 2 | . . . . . . . . . . . . 2 . . . . . . Fabricator Hacks 2 | . . . . . 2 . . . . . . . . . . . . . Load Schematic 1 | . . . . . 1 . . . . . . . . . . . . . Build 1 | . . . . . 1 . . . . . . . . . . . . . Repair Station Hacks 3 | . . . . . . . . . . . 2 . . . . . . 1 Scan Component 1 | . . . . . . . . . . . 1 . . . . . . . Repair 1 | . . . . . . . . . . . 1 . . . . . . . Refit 1 | . . . . . . . . . . . . . . . . . . 1 Recycling Unit Hacks . | . . . . . . . . . . . . . . . . . . . Scanalyzer 4 | . . . . . 4 . . . . . . . . . . . . . Insert Component 2 | . . . . . 2 . . . . . . . . . . . . . Analyze 2 | . . . . . 2 . . . . . . . . . . . . . Garrison Access Hacks 1 | . . . . . . . . . . . . . . . . 1 . . Seal Access 1 | . . . . . . . . . . . . . . . . 1 . . Unauthorized Hacks 3 | . . . . 1 . 1 . . . . 1 . . . . . . . Terminals 3 | . . . . 1 . 1 . . . . 1 . . . . . . . Botnet 3 | . . . . 1 . 1 . . . . 1 . . . . . . . Fabricators . | . . . . . . . . . . . . . . . . . . . Repair Stations . | . . . . . . . . . . . . . . . . . . . Recycling Units . | . . . . . . . . . . . . . . . . . . . Scanalyzers . | . . . . . . . . . . . . . . . . . . . Garrison Access . | . . . . . . . . . . . . . . . . . . . Data Cores Recovered 4 | . . . . . 1 1 . . . . 1 1 . . . . . . Used 2 | . . . . . 1 . . . . . 1 . . . . . . . Hacking Detections 27 | . . . . 2 6 2 . . . . 4 6 . . . 1 2 4 Full Trace Events 14 | . . . . 2 4 1 . . . . 1 3 . . . . . 3 Feedback Events 2 | . . . . . 2 . . . . . . . . . . . . . Corruption 1 | . . . . . 1 . . . . . . . . . . . . . Hackware Fried 1 | . . . . . 1 . . . . . . . . . . . . . Feedback Blocked 1 | . . . . . . . . . . . . . . . . . . 1 Robot Schematics Acquired 3 | . . . . . . . . . 3 . . . . . . . . . Robots Built . | . . . . . . . . . . . . . . . . . . . Authchips . | . . . . . . . . . . . . . . . . . . . Time . | . . . . . . . . . . . . . . . . . . . Total Robot Build Rating . | . . . . . . . . . . . . . . . . . . . Part Schematics Acquired 22 | . . . . . 2 . . . 20 . . . . . . . . . Parts Built 1 | . . . . . 1 . . . . . . . . . . . . . Authchips . | . . . . . . . . . . . . . . . . . . . Time 134 | . . . . . 134 . . . . . . . . . . . . . Total Part Build Rating 4 | . . . . . 4 . . . . . . . . . . . . . Parts Repaired 1 | . . . . . . . . . . . 1 . . . . . . . Time 70 | . . . . . . . . . . . 70 . . . . . . . Parts Recycled . | . . . . . . . . . . . . . . . . . . . Recycled Matter . | . . . . . . . . . . . . . . . . . . . Retrieved Matter . | . . . . . . . . . . . . . . . . . . . Retrieved Components . | . . . . . . . . . . . . . . . . . . . Parts Scanalyzed 2 | . . . . . 2 . . . . . . . . . . . . . Part Schematics Acquired 2 | . . . . . 2 . . . . . . . . . . . . . Parts Damaged . | . . . . . . . . . . . . . . . . . . . Bothacking | -11 -10 -10 -10 -8 -7 -6 -6 -6 -6 -5 -5 -5 -5 -5 -5 -4 -3 -2 ------------ Run | Yrd Mat Min Sub Mat Fac Fac Low Low Zio Pro Fac Ext Cet Arc Hub Fac Res Res Used RIF Installer . | . . . . . . . . . . . . . . . . . . . Robots Hacked . | . . . . . . . . . . . . . . . . . . . Non-combat . | . . . . . . . . . . . . . . . . . . . Combat . | . . . . . . . . . . . . . . . . . . . Robot Hacks Applied . | . . . . . . . . . . . . . . . . . . . Relay Couplers Released 4 | . . . . . . . . . . . . . . . 3 . . 1 Machine Destruction 4 | . . . . . . . . . . . . . . . 3 . . 1 Fabnet Peak Effective % . | . . . . . . . . . . . . . . . . . . . Robots Rewired 6 | . . . . . . . . . . . . 6 . . . . . . Allies Hacked . | . . . . . . . . . . . . . . . . . . . Hacks Repelled . | . . . . . . . . . . . . . . . . . . . Allies | -11 -10 -10 -10 -8 -7 -6 -6 -6 -6 -5 -5 -5 -5 -5 -5 -4 -3 -2 -------- Run | Yrd Mat Min Sub Mat Fac Fac Low Low Zio Pro Fac Ext Cet Arc Hub Fac Res Res Total Allies 22 | . . 3 . . . . . . 3 . . 11 5 . . . . . Largest Group 7 | . . 3 3 . . . . . 3 3 . 7 5 . . . . . Highest-Rated Group 480 | . . 40 40 . . . . . 92 92 . 338 480 . . . . . Highest-Rated Ally 159 | . . 16 16 . . . . . 39 39 . 159 153 . . . . . Total Orders . | . . . . . . . . . . . . . . . . . . . Ally Attacks 130 | . . . 33 . . . . . . 4 . 74 19 . . . . . Total Damage 3139 | . . . 448 . . . . . . 142 . 1965 584 . . . . . Kills 25 | . . . 5 . . . . . . 1 . 16 3 . . . . . Allies Corrupted . | . . . . . . . . . . . . . . . . . . . Allies Melted . | . . . . . . . . . . . . . . . . . . . Intel | -11 -10 -10 -10 -8 -7 -6 -6 -6 -6 -5 -5 -5 -5 -5 -5 -4 -3 -2 ------- Run | Yrd Mat Min Sub Mat Fac Fac Low Low Zio Pro Fac Ext Cet Arc Hub Fac Res Res Active Infowar (turns) 4787 | . . . . 60 549 39 83 298 395 105 537 560 661 213 148 863 . 276 Optics 3527 | . . . . . . 39 83 298 395 105 537 560 661 213 148 488 . . Sensors 2635 | . . . . 60 549 39 83 298 395 105 537 253 . . . 316 . . Terrain 276 | . . . . . . . . . . . . . . . . . . 276 Decoding 2999 | . . . . . . . . . . 32 537 545 661 213 148 863 . . Robot Analysis Total . | . . . . . . . . . . . . . . . . . . . Derelict Logs Recovered 7 | . . 1 . . . . . 2 1 3 . . . . . . . . Drone Launches . | . . . . . . . . . . . . . . . . . . . Drone Recoveries . | . . . . . . . . . . . . . . . . . . . Decoded 0b10 Intel 111 | . . . . . . . . . . . 39 20 1 . 12 39 . . Items 111 | . . . . . . . . . . . 39 20 1 . 12 39 . . Exploration | -11 -10 -10 -10 -8 -7 -6 -6 -6 -6 -5 -5 -5 -5 -5 -5 -4 -3 -2 ------------- Run | Yrd Mat Min Sub Mat Fac Fac Low Low Zio Pro Fac Ext Cet Arc Hub Fac Res Res Turns Passed 5798 | 65 69 79 345 175 549 39 83 298 395 105 537 560 661 213 148 927 61 489 Spaces Moved 7405 | 47 81 122 897 340 820 128 279 572 667 294 883 575 329 58 101 585 118 509 Core 631 | 1 . . . . . . . . . . . . . . . 128 118 384 Treads . | . . . . . . . . . . . . . . . . . . . Legs 953 | 46 32 . . . . . . . . . . 105 154 58 101 457 . . Wheels . | . . . . . . . . . . . . . . . . . . . Hover 473 | . . . . . . . . . . . . 173 175 . . . . 125 Flight 5348 | . 49 122 897 340 820 128 279 572 667 294 883 297 . . . . . . Fastest Speed 25 | 50 37 37 37 28 25 25 25 25 25 25 25 29 52 120 120 50 50 50 Average Speed 47 | 118 72 37 37 36 25 25 25 25 25 25 28 55 127 120 120 103 50 76 Slowest Speed 280 | 120 280 37 40 37 28 25 25 25 25 25 94 190 260 120 120 120 50 240 Overloaded Moves . | . . . . . . . . . . . . . . . . . . . Propulsion Burnouts . | . . . . . . . . . . . . . . . . . . . Robots Hopped 25 | . . 1 2 11 . . . . . . 3 8 . . . . . . Potential Cave-ins 8 | . . . . . . . . . . . 2 6 . . . . . . Cave-ins Triggered 1 | . . . . . . . . . . . 1 . . . . . . . Exploration Rate (%) 39 | 4 19 40 62 22 32 6 51 74 77 65 28 67 74 81 17 13 4 13 Regions Visited 18 Branch Regions 10 Pre-discovered Areas 3 | . . . 1 . . . . . 2 . . . . . . . . . Known Exits Taken 12 | . . 1 . 1 1 1 1 1 1 1 1 1 . . 1 1 . . Unknown Exits Taken 6 | 1 1 . 1 . . . . . . . . . 1 1 . . 1 . Scrap Searched 7 | . . 1 . . . . 1 3 . 2 . . . . . . . . Spaces Dug 32 | . . . . . 7 . . . . . 16 8 . . 1 . . . Terrain Destroyed 242 | . . . . . 7 . . . . . 16 8 8 5 168 30 . . Melee 31 | . . . . . 7 . . . . . 16 8 . . . . . . Projectile 45 | . . . . . . . . . . . . . 8 5 2 30 . . AOE 166 | . . . . . . . . . . . . . . . 166 . . . Terrain Rammed . | . . . . . . . . . . . . . . . . . . . Walls Destroyed . | . . . . . . . . . . . . . . . . . . . Machines Disabled . | . . . . . . . . . . . . . . . . . . . Actions | -11 -10 -10 -10 -8 -7 -6 -6 -6 -6 -5 -5 -5 -5 -5 -5 -4 -3 -2 --------- Run | Yrd Mat Min Sub Mat Fac Fac Low Low Zio Pro Fac Ext Cet Arc Hub Fac Res Res Total 9197 | 53 93 154 902 372 1122 131 283 720 894 315 1102 762 526 147 121 780 118 602 Wait 1204 | . . 34 . 22 251 . . 142 211 15 163 34 113 57 16 73 . 73 Move 7338 | 46 80 119 892 318 819 127 278 571 666 293 875 559 328 57 100 584 117 509 Hop 23 | . . 1 2 10 . . . . . . 3 7 . . . . . . Pick Up 65 | 1 1 . 1 5 9 . . 2 2 . 6 6 15 1 . 16 . . Fast Attach 80 | 6 2 . . 8 5 . . . 6 . 7 13 9 . 1 14 1 8 Attach 31 | . . . 1 3 1 2 . . . 1 3 3 5 2 . 10 . . Detach 20 | . 5 . 1 1 . . . . . . 1 5 4 1 . 1 . 1 Swap 21 | . 1 . . . 1 . . 2 . . 1 1 8 . . 3 . 4 Drop 65 | . 4 . . 2 10 . . . 8 . 6 7 15 . . 11 . 2 Fire 129 | . . . 5 . . . . . . . . . 29 29 4 60 . 2 Melee 109 | . . . . 3 26 2 5 3 1 6 36 27 . . . . . . Ram 11 | . . . . . . . . . . . . 8 . . . . . 3 Kick 2 | . . . . . . . . . . . . . . . . 2 . . Crush . | . . . . . . . . . . . . . . . . . . . Escape Stasis 37 | . . . . . . . . . . . 1 36 . . . . . . Rewire 62 | . . . . . . . . . . . . 56 . . . 6 . . Trap . | . . . . . . . . . . . . . . . . . . . Miscellaneous . | . . . . . . . . . . . . . . . . . . . Route ------- -11/Scrapyard -10/Materials -10/Mines -10/Subcaves (discovered 2 exits: *Mat / [*Rec]) -8/Materials -7/Factory -6/Factory (discovered 2 exits: *Low x2) -6/Lower Caves -6/Lower Caves -6/Zion -5/Proximity Caves -5/Factory -5/Extension (discovered 2 exits: *Fac / *Cet) -5/Cetus (discovered 2 exits: *Fac / [*Arc]) -5/Archives (discovered 3 exits: *Fac / *Hub x2) -5/Hub_04(d) (discovered 4 exits: *Fac x4) -4/Factory (discovered 2 exits: *Res x2) -3/Research -2/Research (discovered 5 exits: Acc x3 / Qua x2) History --------- Turn | Location | Event 46 | -11/Scrapyard | Discovered new exit (range 16) 66 | -11/Scrapyard | Entered Materials 95 | -10/Materials | Discovered new exit (range 16) 135 | -10/Materials | Entered Mines 143 | -10/Mines | Identified exit to Subcaves 176 | -10/Mines | Assisted by bots powering up and referring to "LRC-V3" 214 | -10/Mines | Entered Subcaves 214 | -10/Subcaves | Accompanied by 3 allies 256 | -10/Subcaves | Shifting Twisted Machinery released Scrap Shield 308 | -10/Subcaves | Build established: Mutant 313 | -10/Subcaves | Discovered new exit (range 10) 333 | -10/Subcaves | Learned location of Zion (-6) 333 | -10/Subcaves | Met a Zionite searching for "candidates" 403 | -10/Subcaves | A swath of the cavern ceiling suddenly collapsed 530 | -10/Subcaves | Discovered new exit (range 14) 559 | -10/Subcaves | Entered Materials 559 | -8/Materials | Evolved 4 slots: Propulsion x2, Utility x2 694 | -8/Materials | Discovered new exit (range 16) 734 | -8/Materials | Identified exit to Factory 734 | -8/Materials | Entered Factory 734 | -7/Factory | Evolved 2 slots: Propulsion x1, Utility x1 747 | -7/Factory | System Shield fried by hacking feedback 963 | -7/Factory | Build established: Sprinter 997 | -7/Factory | Fabricated Imp. Cesium-ion Thruster? 1282 | -7/Factory | Discovered new exit (range 5) 1283 | -7/Factory | Identified exit to Factory 1283 | -7/Factory | Entered another Factory area 1283 | -6/Factory | Evolved 2 slots: Utility x2 1293 | -6/Factory | Identified exit to Lower Caves 1322 | -6/Factory | Entered Lower Caves 1330 | -6/Lower Caves | Attracted the attention of an 0b10 base 1401 | -6/Lower Caves | Discovered new exit (range 18) 1405 | -6/Lower Caves | Identified exit to Lower Caves 1405 | -6/Lower Caves | Entered another Lower Caves area 1444 | -6/Lower Caves | Spotted B-75 Beast 1502 | -6/Lower Caves | Encountered a Warlord checkpoint 1547 | -6/Lower Caves | Learned 8 Factory zone layouts 1572 | -6/Lower Caves | Learned location of 1 exit from Factory 1584 | -6/Lower Caves | Build established: Scout 1702 | -6/Lower Caves | Discovered new exit (range 4) 1703 | -6/Lower Caves | Identified exit to Zion 1703 | -6/Lower Caves | Entered Zion 1707 | -6/Zion | Received a visual enhancement algorithm 1708 | -6/Zion | Ran a visual enhancement algorithm 1725 | -6/Zion | Discovered new exit (range 20) 1740 | -6/Zion | Learned Factory stockpile data 1755 | -6/Zion | Learned Factory emergency access door positions 1762 | -6/Zion | Gained Derelict followers 1780 | -6/Zion | Learned location of Armory (-3) 1794 | -6/Zion | Found Prototype Processor 1794 | -6/Zion | Identified Exp. Targeting Computer 1797 | -6/Zion | Found Prototype Processor 1797 | -6/Zion | Identified Exp. Terrain Scan Processor 1799 | -6/Zion | Found Prototype Processor 1799 | -6/Zion | Identified Exp. Core Analyzer 1801 | -6/Zion | Found Prototype Processor 1801 | -6/Zion | Identified Spectral Analyzer 1814 | -6/Zion | Acquired unknown access codes intercepted by a Zionite 1869 | -6/Zion | Identified exit to Proximity Caves 2071 | -6/Zion | System corruption cleaned by Quarantine Array 2098 | -6/Zion | Entered Proximity Caves 2098 | -5/Proximity Caves | Accompanied by 3 allies 2111 | -5/Proximity Caves | Learned Factory emergency access door positions 2159 | -5/Proximity Caves | Spotted B-75 Beast 2174 | -5/Proximity Caves | Attracted the attention of an 0b10 checkpoint 2200 | -5/Proximity Caves | Discovered new exit (range 12) 2203 | -5/Proximity Caves | Identified exit to Factory 2203 | -5/Proximity Caves | Entered Factory 2203 | -5/Factory | Evolved 2 slots: Utility x2 2204 | -5/Factory | Identified exit to Extension 2277 | -5/Factory | Repaired Imp. Cesium-ion Thruster 2389 | -5/Factory | Crushed by falling debris 2448 | -5/Factory | Lost 3 parts (1p1n1u) 2740 | -5/Factory | Entered Extension 2805 | -5/Extension | Rescued a captive Derelict 2806 | -5/Extension | Rescued a captive Derelict 2907 | -5/Extension | Spotted B-75 Beast 2909 | -5/Extension | Rescued a captive Derelict 2915 | -5/Extension | Rescued a captive Derelict 2965 | -5/Extension | Rescued A7 2980 | -5/Extension | Core integrity fell below 50% 2994 | -5/Extension | System corruption reached 10% 3028 | -5/Extension | Lost 7 parts (4n1u2w) 3028 | -5/Extension | Rescued a captive Derelict 3283 | -5/Extension | Discovered new exit (range 10) 3284 | -5/Extension | Discovered new exit (range 6) 3290 | -5/Extension | Identified exit to Cetus 3300 | -5/Extension | Entered Cetus 3300 | -5/Cetus | Accompanied by 2 allies (A7) 3301 | -5/Cetus | Build established: Hacker-Mutant 3305 | -5/Cetus | Acquired a Cetus Manufacturing Module code from A7 3316 | -5/Cetus | Spotted Cetus Guard 3316 | -5/Cetus | Spotted Cetus Guard 3316 | -5/Cetus | Spotted Cetus Guard 3316 | -5/Cetus | Spotted Cetus Guard 3327 | -5/Cetus | Allies destroyed Cetus Guard 3333 | -5/Cetus | Allies destroyed Cetus Guard 3338 | -5/Cetus | Found Prototype Protection 3340 | -5/Cetus | Extracted ID and sensor layout for unrecognized location from A7's data core 3366 | -5/Cetus | Lost 3 allies 3372 | -5/Cetus | Destroyed Cetus Guard 3375 | -5/Cetus | Destroyed Cetus Guard 3401 | -5/Cetus | Lost 4 parts (4n) 3522 | -5/Cetus | Started Cetus Manufacturing Module 3547 | -5/Cetus | Manufactured an Enhanced Grunt 3572 | -5/Cetus | Manufactured an Enhanced Grunt 3597 | -5/Cetus | Manufactured an Enhanced Grunt 3622 | -5/Cetus | Manufactured an Enhanced Grunt 3647 | -5/Cetus | Manufactured an Enhanced Grunt 3688 | -5/Cetus | Identified Med. Regenerative Plating 3689 | -5/Cetus | Discovered new exit (range 23) 3749 | -5/Cetus | Spotted Cetus Guard 3749 | -5/Cetus | Spotted Cetus Guard 3749 | -5/Cetus | Spotted Cetus Guard 3749 | -5/Cetus | Spotted Cetus Guard 3750 | -5/Cetus | Discovered new exit (range 24) 3756 | -5/Cetus | Build established: Scavenger-Mutant 3767 | -5/Cetus | Destroyed Cetus Guard 3771 | -5/Cetus | Destroyed Cetus Guard 3792 | -5/Cetus | Destroyed Cetus Guard 3807 | -5/Cetus | Lost 5 allies 3885 | -5/Cetus | Destroyed Cetus Guard 3888 | -5/Cetus | Met Revision 17 3927 | -5/Cetus | Found Prototype Device 3928 | -5/Cetus | Identified Exp. Thermal Shield 3961 | -5/Cetus | Entered Archives 4058 | -5/Archives | Core integrity fell below 20% 4076 | -5/Archives | Discovered new exit (range 23) 4100 | -5/Archives | Discovered new exit (range 21) 4105 | -5/Archives | Discovered new exit (range 24) 4174 | -5/Archives | Entered Hub_04(d) 4266 | -5/Hub_04(d) | Network Hub disabled 4284 | -5/Hub_04(d) | Identified exit to Factory 4311 | -5/Hub_04(d) | Spotted Lightning 4311 | -5/Hub_04(d) | Spotted Lightning 4320 | -5/Hub_04(d) | Spotted Lightning 4322 | -5/Hub_04(d) | Entered Factory 4322 | -4/Factory | Evolved 2 slots: Power x1, Utility x1 4488 | -4/Factory | Discovered new exit (range 13) 4609 | -4/Factory | Identified exit to Research 4862 | -4/Factory | Lost 10 parts (2p2n6u) 5067 | -4/Factory | Lost 3 parts (1p2n) 5180 | -4/Factory | Spotted B-86 Titan 5185 | -4/Factory | Released all parts (13) 5195 | -4/Factory | Core integrity fell below 50% 5216 | -4/Factory | Lost 7 parts (2p2n2u1w) 5236 | -4/Factory | Discovered exit to Research (range 12) 5249 | -4/Factory | Entered Research 5249 | -3/Research | Evolved 2 slots: Utility x2 5302 | -3/Research | Discovered new exit (range 16) 5310 | -3/Research | Entered another Research area 5310 | -2/Research | Evolved 2 slots: Utility x2 5341 | -2/Research | Identified exit to Quarantine 5341 | -2/Research | Identified exit to Access 5488 | -2/Research | Build established: Mutant 5646 | -2/Research | Released all parts (8) 5683 | -2/Research | Spotted B-90 Cyclops 5717 | -2/Research | Core integrity fell below 50% 5768 | -2/Research | Core integrity fell below 20% 5799 | -2/Research | Destroyed by G-73 Enforcer with Heavy Laser Last Messages --------------- 05721_ Slug penetrates H-88 Terminator. 05723_ Penetrated by Slug. 05726_ Slug penetrates Wall. 05727_ Penetrated by Slug. 05733_ Biometal Heavy Treads destroyed. 05741_ &VC#1J3|GQ// 05778_ Acquired Antigrav Array. 05784_ Slug penetrates Wall. 05788_ Slug penetrates Door. 05788_ Slug penetrates Wall. 05790_ System corrupted: Energy discharge (-32). 05792_ Penetrated by Slug. 05792_ Slug penetrates Wall. 05794_ Slammed into G-73 Enforcer. Map ----- +----------------------------------------------------+ | ????????????????????????????????????????# | | ????????????????????????????????????????# | | ????????????????????????????????????????######/## | | ????????????????????????????????????????# | | ????????????????????????????????????????# | | ????????????????##############??????????# | | ????????????????# #??????????# | | ????????????????# #??????????#### # | | ????????????????# """"""" #?????????????# # | | ????????????????# """"""" ####+########## # | | ????????????????# """"""" # # | | ????????????????# # | | ????????????????# # # | | ????????????????# """ # # | | ????????????????# """ ####+######+######## | | ????????????????# """ p ## # #??? | | ????????????????# ! ! ## # #??? | | ????????????????# ## # T #??? | | ????????????????########g###### # #??? | | ????????????????????#!!g #??# # #??? | | ????????????????????#! g #??# # #??? | | ????????????????????# ! g #??# # #??? | | ????????????????????# #??# # #??? | | ????????????????????# #??# ]] # #??? | | ????????????????????# #??# ]] ##########??? | | ????????????????????####@###??#]]] #???????????? | | ?????????????????????? ???# #???????????? | | ???????????????????? #??#######???????????? | | ?????????????????? " ???????????????????? | | ????????????????# ###??????????????????? | | ????????????????###### ! #????????????????????? | | ?????????????????????### ###????????????????????? | | ???????????????????????# ??????????????????????? | | ???????????????????????# #??????????????????????? | | ???????????????????????? ???????????????????????? | | ???????????????????????? ???????????????????????? | | ???????????????????????? ???????????????????????? | | ???????????????????????? ???????????????????????? | | ????????????????????????w???????????????????????? | | ????????????????????????????????????????????????? | | ????????????????????????????????????????????????? | | ????????????????????????????????????????????????? | | ????????????????????????????????????????????????? | | ????????????????????????????????????????????????? | | ????????????????????????????????????????????????? | | ????????????????????????????????????????????????? | | ????????????????????????????????????????????????? | | ????????????????????????????????????????????????? | | ????????????????????????????????????????????????? | | ????????????????????????????????????????????????? | +----------------------------------------------------+ Best States ------------- Heat Dissipation 88 Energy Generation 41 Energy Capacity 800 Matter Stores 300 Matter Capacity 300 Sight Range 24 Robot Scan Range 18 Terrain Scan Range 20 Terrain Scan Density 210 Armor Coverage 675 Resistance: TH 30 Propulsion Shielding 33 Weapon Shielding 66 Evasion (%) 65 Targeting Accuracy 8 Melee Accuracy 16 Target Analysis 9 Core Analysis 8 Recoil Reduction 2 Force Boost 20 Offensive Hacking 10 Defensive Hacking 24 Item Schematics ----------------- Imp. Cesium-ion Thruster | -7/Factory | Scanalyzed Hardlight Generator | -7/Factory | Scanalyzed Adv. Trap Extractor | -6/Zion | Archive Imp. Particle Charger | -6/Zion | Archive Adv. Signal Interpreter | -6/Zion | Archive Lrn. Proton Cannon | -6/Zion | Archive Imp. KE Penetrator | -6/Zion | Archive Imp. Remote Datajack | -6/Zion | Archive Arm. Leg | -6/Zion | Archive Dispersion Rifle | -6/Zion | Archive Adv. Thermal Shield | -6/Zion | Archive Flexi-carbon Leg | -6/Zion | Archive Point Defense System | -6/Zion | Archive Imp. Medium Treads | -6/Zion | Archive Fusion Compressor | -6/Zion | Archive Enh. Gauss Cannon | -6/Zion | Archive Adv. Terrain Scanner | -6/Zion | Archive Battle Cannon | -6/Zion | Free Beamcaster | -6/Zion | Free Hvy. Riot Gun | -6/Zion | Free Slug Cannon | -6/Zion | Free Ripper | -6/Zion | Free Robot Schematics ------------------ T-07 Excavator | -6/Zion | Archive G-50 Soldier | -6/Zion | Archive A-02 Transporter | -6/Zion | Archive Fabricated ------------ Imp. Cesium-ion Thruster | x1 | -7/Factory Repaired ---------- Imp. Cesium-ion Thruster | 28% | -5/Factory Alien Tech Used ----------------- None Achievements -------------- None Challenges ------------ None Game ------ Seed PoweredVortexAmplifier Manual? 0 Play Time 01:29:48 Cumulative 639.4 hours Start 2025.06.06 @ 21:06:16 End 2025.06.06 @ 23:19:56 Sessions 1 Manual Loads 0 Difficulty Rogue Special Mode None Game No. 415 Rogue 415 Adventurer 0 Explorer 0 Win Type - Total 38 Types 25/1/6/6/0/0/0/0/0/0 Lore% 68 Gallery% 73 Achievement% 78 Wizard Run 0 Options --------- Layout 0 ASCII 1 Keyboard 1 Movement Numpad Keybinds 0 Fullscreen 2 Font 24/Smallcaps Map View 76x50 Zoom Use 0% Tactical HUD 1 Map Filters NONE Filters NONE Steam 1 RUN: c1191ecf-bfa2-466b-b2b3-530934882f1f